lending/lending_fUSD_20260204
["ID","MTS","AMOUNT","RATE_DAILY","PERIOD"]
[404504659,1770228641192,-2779.50619368,0.00018,2]
[404504660,1770228641202,-1000.0,0.00018,2]
[404504661,1770228641213,-1000.0,0.00018,2]
[404504662,1770228641223,-1000.0,0.00018,2]
[404504663,1770228641233,-1000.0,0.00018,2]
[404504664,1770228641243,-1000.0,0.00018,2]
[404504665,1770228641253,-1000.0,0.00018,2]
[404504666,1770228641263,-1000.0,0.00018,2]
[404504667,1770228641274,-1000.0,0.00018,2]
[404504668,1770228641284,-1000.0,0.00018,2]
[404504669,1770228641294,-1000.0,0.00018,2]
[404504670,1770228641305,-1000.0,0.00018,2]
[404504671,1770228641315,-1000.0,0.00018,2]
[404504672,1770228641324,-1000.0,0.00018,2]
[404504673,1770228641336,-151.0,0.00018,2]
[404504674,1770228641349,-150.0,0.00018,2]
[404504675,1770228641359,-3719.43288921,0.00018,2]
[404504676,1770228641370,-150.0,0.00018,2]
[404504677,1770228641381,-13951.84751777,0.00018,2]
[404504678,1770228641392,-150.0,0.00018,2]
[404504679,1770228641402,-200.0,0.00018,2]
[404504680,1770228641416,-2828.45580677,0.00018,2]
[404504681,1770228641425,-1000.0,0.00018,2]
[404504682,1770228641435,-429.11,0.00018,2]
[404504683,1770228641445,-2000.0,0.00018,2]
[404504684,1770228641455,-151.0,0.00018,2]
[404504685,1770228641465,-2000.0,0.00018,2]
[404504686,1770228641484,-2000.0,0.00018,2]
[404504687,1770228641494,-2000.0,0.00018,2]
[404504688,1770228641504,-2000.0,0.00018,2]
[404504689,1770228641514,-200.0,0.00018,2]
[404504690,1770228641524,-168.0,0.00018002,2]
[404504691,1770228641534,-533.0,0.0001801,2]
[404504692,1770228641543,-436.0,0.00018027,2]
[404504693,1770228641553,-436.0,0.00018082,2]
[404504694,1770228641563,-1000.0,0.00018082,2]
[404504695,1770228641574,-823.0,0.00018085,2]
[404504696,1770228641585,-481.33735445,0.00018093,2]
[404504697,1770228641595,-481.13476576,0.00018093,2]
[404504698,1770228641605,-1780.57021893,0.000181,2]
[404504699,1770228641615,-436.0,0.00018137,2]
[404504700,1770228641625,-168.0,0.00018141,2]
[404504701,1770228641635,-150.0,0.00018141,7]
[404504702,1770228641644,-181.908566,0.00018141,7]
[404504703,1770228641654,-213.817133,0.00018141,7]
[404504704,1770228641665,-245.725699,0.00018141,7]
[404504705,1770228641675,-277.634266,0.00018141,7]
[404504706,1770228641685,-309.542832,0.00018141,7]
[404504707,1770228641695,-341.451399,0.00018141,7]
[404504708,1770228641704,-373.359966,0.00018141,7]
[404504709,1770228641714,-405.268532,0.00018141,7]
[404504710,1770228641724,-437.177099,0.00018141,7]
[404504711,1770228641734,-1389.943055,0.00018141,7]
[404504712,1770228641743,-1504.24,0.0001816,2]
[404504713,1770228641753,-168.0,0.00018172,2]
[404504714,1770228641763,-436.0,0.00018192,2]
[404504715,1770228641774,-799.54513345,0.00018195,2]
[404504716,1770228641784,-187.78006525,0.00018195,2]
[404504717,1770228641794,-1536.04360649,0.00018195,2]
[404504718,1770228641804,-225.18697532,0.00018195,2]
[404504719,1770228641813,-298.26089446,0.00018195,2]
[404504720,1770228641823,-225.18697532,0.00018195,2]
[404504721,1770228641833,-983.0,0.00018227,2]
[404504722,1770228641842,-773.23,0.00018228,2]
[404504723,1770228641852,-868.9,0.00018228,2]
[404504724,1770228641861,-436.0,0.00018246,2]
[404504725,1770228641871,-168.0,0.0001827,2]
[404504726,1770228641880,-983.0,0.00018271,2]
[404504727,1770228641889,-436.0,0.00018301,2]
[404504728,1770228641899,-480.0,0.00018306,2]
[404504729,1770228641908,-983.0,0.0001831,2]
[404504730,1770228641922,-151.45333834,0.00018331,2]
[404504731,1770228641932,-300.0,0.00018355,2]
[404504732,1770228641941,-300.0,0.00018355,2]
[404504733,1770228641950,-300.0,0.00018355,2]
[404504734,1770228641960,-436.0,0.00018356,2]
[404504735,1770228641970,-88542.01,0.00018356,2]
[404504736,1770228641979,-1000.0,0.00018356,2]
[404504737,1770228641988,-155.0,0.00018359,2]
[404504738,1770228641997,-7309.39789453,0.00018364,2]
[404504739,1770228642006,-166.66,0.00018388,2]
[404504740,1770228642015,-436.0,0.00018411,2]
[404504741,1770228642025,-983.0,0.0001842,2]
[404504742,1770228642035,-168.0,0.00018422,2]
[404504743,1770228642044,-4000.0,0.00018436,2]
[404504744,1770228642055,-436.0,0.00018466,2]
[404504745,1770228642065,-334.5472959,0.00018468,2]
[404504746,1770228642075,-481.33735445,0.00018504,2]
[404504747,1770228642085,-481.13476576,0.00018504,2]
[404504748,1770228642094,-168.0,0.00018505,2]
[404504749,1770228642103,-983.0,0.00018517,2]
[404504750,1770228642113,-436.0,0.0001852,2]
[404504751,1770228642122,-1000.0,0.00018521,2]
[404504752,1770228642132,-1000.0,0.00018521,2]
[404504753,1770228642142,-808.69765385,0.00018521,2]
[404504754,1770228642151,-1000.0,0.00018521,2]
[404504755,1770228642165,-1000.0,0.00018521,2]
[404504756,1770228642174,-1000.0,0.00018521,2]
[404504757,1770228642183,-1000.0,0.00018521,2]
[404504758,1770228642193,-1000.0,0.00018521,2]
[404504759,1770228642202,-1061.0437287,0.00018521,2]
[404504760,1770228642211,-1000.0,0.00018521,2]
[404504761,1770228642220,-1000.0,0.00018521,2]
[404504762,1770228642229,-1000.0,0.00018521,2]
[404504763,1770228642240,-1000.0,0.00018521,2]
[404504764,1770228642250,-258.92348319,0.00018521,2]
[404504765,1770228642259,-1000.0,0.00018521,2]
[404504766,1770228642268,-1000.0,0.00018521,2]
[404504767,1770228642279,-1000.0,0.00018521,2]
[404504768,1770228642290,-1000.0,0.00018521,2]
[404504769,1770228642299,-1000.0,0.00018521,2]
[404504770,1770228642309,-1000.0,0.00018521,2]
[404504771,1770228642319,-1000.0,0.00018521,2]
[404504772,1770228642329,-1000.0,0.00018521,2]
[404504773,1770228642342,-1000.0,0.00018521,2]
[404504774,1770228642351,-1000.0,0.00018521,2]
[404504775,1770228642362,-1020.51877833,0.00018521,2]
[404504776,1770228642372,-1000.0,0.00018521,2]
[404504777,1770228642384,-510.18045703,0.00018521,2]
[404504778,1770228642394,-1000.0,0.00018521,2]
[404504779,1770228642404,-1000.0,0.00018521,2]
[404504780,1770228642415,-1000.0,0.00018521,2]
[404504781,1770228642425,-761.79041321,0.00018521,2]
[404504782,1770228642434,-1000.0,0.00018521,2]
[404504783,1770228642444,-1000.0,0.00018521,2]
[404504784,1770228642453,-1000.0,0.00018521,2]
[404504785,1770228642463,-1000.0,0.00018521,2]
[404504786,1770228642472,-1000.0,0.00018521,2]
[404504787,1770228642482,-500.0,0.00018521,2]
[404504788,1770228642491,-1000.0,0.00018521,2]
[404504789,1770228642502,-1000.0,0.00018521,2]
[404504790,1770228642512,-1000.0,0.00018521,2]
[404504791,1770228642522,-1000.0,0.00018521,2]
[404504792,1770228642532,-1000.0,0.00018521,2]
[404504793,1770228642542,-1001.08336444,0.00018521,2]
[404504794,1770228642552,-168.0,0.00018543,2]
[404504795,1770228642562,-168.0,0.00018546,2]
[404504796,1770228642572,-436.0,0.00018575,2]
[404504797,1770228642582,-983.0,0.00018586,2]
[404504798,1770228642592,-436.0,0.0001863,2]
[404504799,1770228642602,-1000.0,0.0001863,2]
[404504800,1770228642612,-533.0,0.00018636,2]
[404504801,1770228642622,-436.0,0.00018685,2]
[404504802,1770228642632,-155.0,0.00018719,2]
[404504803,1770228642641,-436.0,0.0001874,2]
[404504804,1770228642651,-829.12830338,0.00018743,2]
[404504805,1770228642661,-194.72792766,0.00018743,2]
[404504806,1770228642676,-1592.87721993,0.00018743,2]
[404504807,1770228642685,-233.51889341,0.00018743,2]
[404504808,1770228642694,-355.98094566,0.00018743,2]
[404504809,1770228642707,-233.51889341,0.00018743,2]
[404504810,1770228642717,-168.0,0.00018765,2]
[404504811,1770228642727,-436.0,0.00018794,2]
[404504812,1770228642737,-500.0,0.00018829,3]
[404504813,1770228642746,-436.0,0.00018849,2]
[404504814,1770228642756,-16794.94870689,0.00018888,2]
[404504815,1770228642765,-223.4546,0.000189,2]
[404504816,1770228642775,-436.0,0.00018904,2]
[404504817,1770228642784,-1000.0,0.00018904,2]
[404504818,1770228642794,-151.45333834,0.00018922,2]
[404504819,1770228642803,-983.0,0.00018926,2]
[404504820,1770228642812,-166.66,0.00018957,2]
[404504821,1770228642821,-436.0,0.00018959,2]
[404504822,1770228642831,-2285.27371838,0.00018984,2]
[404504823,1770228642840,-168.0,0.00018997,2]
[404504824,1770228642849,-150.0,0.00018999,2]
[404504825,1770228642859,-5172.30345765,0.00019,2]
[404504826,1770228642869,-5987.85099973,0.00019,2]
[404504827,1770228642878,-743.70064085,0.00019,2]
[404504828,1770228642888,-657.39506443,0.00019,2]
[404504829,1770228642898,-350.0,0.00019,2]
[404504830,1770228642908,-358.85832255,0.0001901,7]
[404504831,1770228642918,-436.0,0.00019013,2]
[404504832,1770228642928,-437.88177425,0.00019068,2]
[404504833,1770228642937,-1408.09735304,0.00019068,2]
[404504834,1770228642947,-1500.0,0.00019068,2]
[404504835,1770228642957,-1500.0,0.00019068,2]
[404504837,1770228642967,-1500.0,0.00019068,2]
[404504839,1770228642977,-1500.0,0.00019068,2]
[404504841,1770228642986,-1500.0,0.00019068,2]
[404504843,1770228642996,-1500.0,0.00019068,2]
[404504844,1770228643006,-1500.0,0.00019068,2]
[404504847,1770228643016,-1508.52351099,0.00019068,2]
[404504848,1770228643025,-1500.0,0.00019068,2]
[404504850,1770228643034,-190.50251183,0.00019068,2]
[404504852,1770228643044,-1500.0,0.00019068,2]
[404504855,1770228643054,-1506.20072576,0.00019068,2]
[404504857,1770228643063,-1511.05293848,0.00019068,2]
[404504858,1770228643072,-1506.17207887,0.00019068,2]
[404504860,1770228643083,-1509.54743966,0.00019068,2]
[404504862,1770228643092,-1500.0,0.00019068,2]
[404504864,1770228643102,-1500.0,0.00019068,2]
[404504866,1770228643112,-243.06542689,0.00019068,2]
[404504867,1770228643121,-1500.0,0.00019068,2]
[404504868,1770228643130,-1500.0,0.00019068,2]
[404504869,1770228643140,-1500.0,0.00019068,2]
[404504870,1770228643353,-1506.11271357,0.00019068,2]
[404504871,1770228643363,-1088.42408822,0.00019068,2]
[404504872,1770228643373,-792.28447757,0.00019068,2]
[404504873,1770228643382,-1500.0,0.00019068,2]
[404504874,1770228643391,-1500.0,0.00019068,2]
[404504875,1770228643401,-1500.0,0.00019068,2]
[404504876,1770228643416,-1500.0,0.00019068,2]
[404504877,1770228643425,-198.7436522,0.00019068,2]
[404504878,1770228643435,-1500.0,0.00019068,2]
[404504879,1770228643444,-1500.0,0.00019068,2]
[404504880,1770228643453,-1500.0,0.00019068,2]
[404504881,1770228643463,-1386.548455,0.00019068,2]
[404504882,1770228643472,-1500.0,0.00019068,2]
[404504883,1770228643481,-155.0,0.00019079,2]
[404504884,1770228643490,-234.8731037,0.00019082,2]
[404504885,1770228643499,-983.0,0.00019104,2]
[404504886,1770228643508,-3000.0,0.00019178,2]
[404504887,1770228643517,-3005.49306087,0.00019178,7]
[404504888,1770228643527,-500.0,0.00019178,2]
[404504889,1770228643537,-20148.96,0.00019178,2]
[404504890,1770228643547,-1000.0,0.00019178,2]
[404504891,1770228643557,-150.0,0.00019178,2]
[404504892,1770228643567,-1000.0,0.00019185,2]
[404504893,1770228643577,-983.0,0.00019213,2]
[404504894,1770228643587,-168.0,0.00019226,2]
[404504895,1770228643596,-500.0,0.00019233,2]
[404504896,1770228643605,-983.0,0.00019239,2]
[404504897,1770228643615,-533.0,0.00019262,3]
[404504898,1770228643625,-150.0,0.00019287,2]
[404504899,1770228643635,-150.0,0.00019287,2]
[404504900,1770228643644,-150.0,0.00019287,2]
[404504901,1770228643653,-150.0,0.00019287,2]
[404504902,1770228643665,-150.0,0.00019287,2]
[404504903,1770228643674,-150.0,0.00019287,2]
[404504904,1770228643683,-150.0,0.00019287,2]
[404504905,1770228643692,-1335.0,0.00019287,2]
[404504906,1770228643702,-306.43770568,0.00019287,2]
[404504907,1770228643719,-1103.56229432,0.00019287,2]
[404504908,1770228643728,-3482.0,0.00019287,2]
[404504909,1770228643738,-1271.0,0.00019287,2]
[404504910,1770228643747,-1205.0,0.00019287,2]
[404504911,1770228643756,-843.93770568,0.00019287,2]
[404504912,1770228643767,-73.06229432,0.00019287,2]
[404504914,1770228643777,-586.87225685,0.00019287,2]
[404504917,1770228643796,-2666.12774315,0.00019287,2]
[404504919,1770228643806,-3028.86105685,0.00019287,2]
[404504920,1770228643817,-2465.20947077,0.00019287,2]
[404504921,1770228644165,-150.0,0.0001377,2]
[404504922,1770228644175,-1085.92947238,0.00019287,2]
[404504923,1770228644185,-1317.0,0.00019287,2]
[404504924,1770228644195,-500.0,0.00019288,2]
[404504925,1770228644204,-859.80605061,0.00019291,2]
[404504926,1770228644215,-201.93286099,0.00019291,2]
[404504927,1770228644226,-1651.81367706,0.00019291,2]
[404504928,1770228644236,-167.88349573,0.00019291,2]
[404504929,1770228644245,-242.15909246,0.00019291,2]
[404504930,1770228644254,-168.0,0.00019294,2]
[404504931,1770228644264,-991.0,0.000193,2]
[404504932,1770228644273,-780.0,0.000193,2]
[404504933,1770228644282,-157.90742177,0.00019342,2]
[404504934,1770228644291,-1637.0,0.00019395,2]
[404504935,1770228644300,-155.0,0.00019439,2]
[404504936,1770228644309,-1000.0,0.00019452,2]
[404504937,1770228644318,-1637.0,0.0001947,2]
[404504938,1770228644328,-180.53869029,0.00019485,2]
[404504939,1770228644337,-151.45333834,0.00019514,2]
[404504940,1770228644350,-166.66,0.00019527,2]
[404504941,1770228644359,-455.50158308,0.00019616,2]
[404504942,1770228644369,-2000.0,0.00019616,2]
[404504943,1770228644378,-2000.0,0.00019616,2]
[404504944,1770228644390,-401.53386692,0.00019616,2]
[404504945,1770228644399,-625.65181569,0.00019616,2]
[404504946,1770228644408,-2000.0,0.00019616,2]
[404504947,1770228644419,-2000.0,0.00019616,2]
[404504948,1770228644428,-2000.0,0.00019616,2]
[404504949,1770228644437,-2000.0,0.00019616,2]
[404504950,1770228644447,-2000.0,0.00019616,2]
[404504951,1770228644455,-2000.0,0.00019616,2]
[404504952,1770228644464,-2000.0,0.00019616,2]
[404504953,1770228644473,-2000.0,0.00019616,2]
[404504954,1770228644483,-2000.0,0.00019616,2]
[404504955,1770228644492,-2000.0,0.00019616,2]
[404504956,1770228644502,-2000.0,0.00019616,2]
[404504957,1770228644511,-489.35971528,0.00019616,2]
[404504958,1770228644520,-2000.0,0.00019616,2]
[404504959,1770228644529,-176.49864446,0.00019616,2]
[404504960,1770228644538,-2000.0,0.00019616,2]
[404504961,1770228644547,-509.0732028,0.00019616,2]
[404504962,1770228644557,-2000.0,0.00019616,2]
[404504963,1770228644566,-500.0,0.00019726,2]
[404504964,1770228644576,-1000.0,0.00019726,2]
[404504965,1770228644586,-250.0,0.00019726,2]
[404504966,1770228644595,-500.0,0.00019781,2]
[404504967,1770228644604,-155.0,0.00019799,2]
[404504968,1770228644613,-1152.0,0.00019819,2]
[404504969,1770228644626,-500.0,0.00019836,2]
[404504970,1770228644635,-346.92554585,0.00019837,2]
[404504971,1770228644645,-599.60298507,0.00019838,2]
[404504972,1770228644654,-747.8093786,0.00019838,2]
[404504973,1770228644665,-891.61887448,0.00019839,2]
[404504974,1770228644674,-209.40437684,0.00019839,2]
[404504975,1770228644684,-1712.93078312,0.00019839,2]
[404504976,1770228644694,-392.51179752,0.00019839,2]
[404504977,1770228644703,-7309.39789453,0.0001987,2]
[404504978,1770228644713,-533.0,0.00019889,3]
[404504979,1770228644723,-500.0,0.0001989,2]
[404504980,1770228644733,-4927.41594902,0.000199,3]
[404504981,1770228644742,-500.0,0.00019945,2]
[404504982,1770228644752,-29197.97987514,0.0001995,15]
[404504983,1770228644764,-1288.63248971,0.0001995,15]
[404504984,1770228644775,-258.6914863,0.0001995,15]
[404504985,1770228644786,-519.56113632,0.0001995,15]
[404504986,1770228644797,-420.81679979,0.0001995,15]
[404504987,1770228644808,-620.73678592,0.0001995,15]
[404504988,1770228644820,-4050.0,0.0001995,15]
[404504989,1770228644835,-1400.0005,0.0001995,15]
[404504990,1770228644846,-4979.76509798,0.0001995,15]
[404504991,1770228644861,-525.16036174,0.0001995,15]
[404504992,1770228644873,-167475.86629474,0.0001995,15]
[404504993,1770228644882,-90340.10125264,0.0001995,15]
[404504994,1770228644892,-221.71472575,0.0001996,2]
[404504995,1770228644901,-500.0,0.00019969,2]
[404504996,1770228644910,-150.0,0.00019973,2]
[404504997,1770228644921,-150.0,0.00019973,2]
[404504998,1770228644931,-300.0,0.00019973,2]
[404504999,1770228644940,-164.51781159,0.00019973,2]
[404505000,1770228644949,-500.0,0.00019973,2]
[404505001,1770228644959,-200.0,0.00019973,2]
[404505002,1770228644968,-500.0,0.0002,2]
[404505003,1770228644977,-1534.27986405,0.0002,2]
[404505004,1770228644986,-176.62131829,0.0002,2]
[404505005,1770228644996,-25611.58855518,0.0002,2]
[404505006,1770228645005,-2464.68,0.0002,2]
[404505007,1770228645014,-3950.0,0.0002,2]
[404505008,1770228645023,-1295.3563637,0.0002,2]
[404505009,1770228645032,-1045.6238004,0.0002,2]
[404505010,1770228645041,-2865.43958154,0.0002,2]
[404505011,1770228645050,-12932.19585297,0.0002,2]
[404505012,1770228645059,-152.0,0.0002,2]
[404505013,1770228645069,-2940.86639739,0.0002,7]
[404505014,1770228645077,-529.85357288,0.0002,7]
[404505015,1770228645086,-2173.70562671,0.0002,7]
[404505016,1770228645095,-200.0,0.0002,2]
[404505017,1770228645105,-10001.35483759,0.0002,2]
[404505018,1770228645114,-400.0,0.0002,2]
[404505019,1770228645123,-164.66031058,0.0002,2]
[404505020,1770228645132,-1468.79054938,0.0002,5]
[404505021,1770228645142,-7344.79642199,0.0002,14]
[404505022,1770228645151,-242.73214169,0.0002,2]
[404505023,1770228645160,-500.0,0.0002,2]
[404505024,1770228645171,-590.56,0.0002,20]
[404505025,1770228645180,-200.0,0.0002,2]
[404505026,1770228645189,-193.0,0.0002,2]
[404505027,1770228645198,-368042.19107346,0.0002,4]
[404505028,1770228645207,-8300.0,0.0002,4]
[404505029,1770228645217,-162.15843273,0.0002,4]
[404505030,1770228645226,-25387.00718571,0.0002,20]
[404505031,1770228645235,-500.0,0.0002,2]
[404505032,1770228645244,-2876.560162,0.0002,2]
[404505033,1770228645253,-160.0,0.0002,7]
[404505034,1770228645262,-187.88,0.0002,2]
[404505035,1770228645272,-151.38954661,0.0002,20]
[404505036,1770228645282,-200.0,0.0002,2]
[404505037,1770228645291,-1000.0,0.0002,7]
[404505038,1770228645300,-1000.0,0.0002,2]
[404505039,1770228645311,-500.0,0.00020001,2]
[404505040,1770228645320,-500.0,0.00020002,2]
[404505041,1770228645331,-499.9998,0.00020003,2]
[404505042,1770228645342,-8720.0,0.0002001,2]
[404505043,1770228645351,-625.34337535,0.00020055,2]
[404505044,1770228645361,-166.66,0.00020096,2]
[404505045,1770228645370,-151.45333834,0.00020105,2]
[404505046,1770228645381,-504.2260666,0.00020164,2]
[404505047,1770228645391,-2000.0,0.00020164,2]
[404505048,1770228645400,-319.67317474,0.00020164,2]
[404505049,1770228645412,-2500.0,0.00020164,2]
[404505050,1770228645423,-2179.85333757,0.00020164,2]
[404505051,1770228645432,-2500.0,0.00020164,2]
[404505052,1770228645442,-474.64879752,0.00020164,2]
[404505053,1770228645451,-2500.0,0.00020164,2]
[404505054,1770228645461,-2239.79106788,0.00020164,2]
[404505055,1770228645470,-1989.83814395,0.00020164,2]
[404505056,1770228645480,-2148.37952875,0.00020164,2]
[404505057,1770228645491,-1508.78286515,0.00020164,2]
[404505058,1770228645500,-1216.63993214,0.00020164,2]
[404505059,1770228645509,-2500.0,0.00020164,2]
[404505060,1770228645518,-1191.02177734,0.00020164,2]
[404505061,1770228645528,-1080.67227707,0.00020164,2]
[404505062,1770228645537,-1000.0,0.00020274,2]
[404505063,1770228645547,-264.22164046,0.00020274,2]
[404505064,1770228645557,-221.71472575,0.0002038,2]
[404505065,1770228645567,-924.60877284,0.00020387,2]
[404505066,1770228645577,-217.15233878,0.00020387,2]
[404505067,1770228645587,-150.0,0.00020404,2]
[404505068,1770228645596,-150.0,0.00020418,2]
[404505069,1770228645605,-200.0,0.00020446,2]
[404505070,1770228645616,-150.0,0.00020484,2]
[404505071,1770228645625,-150.0,0.000205,2]
[404505072,1770228645635,-533.0,0.00020515,4]
[404505074,1770228645644,-250.0,0.00020521,2]
[404505076,1770228645654,-300.0,0.00020521,2]
[404505078,1770228645666,-600.0,0.00020521,2]
[404505079,1770228645675,-523.03396718,0.00020521,2]
[404505080,1770228645686,-154.67,0.00020548,2]
[404505081,1770228645695,-21547.31,0.00020548,2]
[404505083,1770228645705,-1000.0,0.00020548,2]
[404505084,1770228645715,-500.0,0.00020575,2]
[404505085,1770228645724,-1028.32970157,0.0002058,2]
[404505086,1770228645734,-1127.59282848,0.0002058,2]
[404505087,1770228645743,-1142.48279374,0.0002058,2]
[404505088,1770228645753,-1109.7483048,0.0002058,2]
[404505089,1770228645763,-1102.40643328,0.0002058,2]
[404505090,1770228645773,-1023.87470151,0.0002058,2]
[404505091,1770228645782,-1059.5978833,0.0002058,2]
[404505092,1770228645791,-958.87203634,0.0002058,2]
[404505093,1770228645800,-692.85851798,0.00020695,2]
[404505094,1770228645811,-692.85851798,0.00020695,2]
[404505095,1770228645820,-151.45333834,0.00020696,2]
[404505096,1770228645829,-22679.28343919,0.000207,2]
[404505097,1770228645839,-3000.0,0.00020712,2]
[404505098,1770228645848,-3000.0,0.00020712,2]
[404505099,1770228645857,-3000.0,0.00020712,2]
[404505100,1770228645866,-3000.0,0.00020712,2]
[404505101,1770228645875,-150.0,0.00020743,2]
[404505102,1770228645885,-150.0,0.00020746,2]
[404505104,1770228645893,-150.0,0.00020753,2]
[404505106,1770228645903,-150.0,0.00020762,2]
[404505108,1770228645912,-150.0,0.00020789,2]
[404505109,1770228645923,-38230.0690539,0.0002079,2]
[404505111,1770228645932,-221.71472575,0.000208,2]
[404505114,1770228645941,-1000.0,0.00020822,2]
[404505116,1770228645950,-152.0,0.00020844,3]
[404505119,1770228645961,-150.0,0.00020845,2]
[404505121,1770228645969,-700.0,0.0002087,2]
[404505123,1770228645978,-500.0,0.0002087,2]
[404505125,1770228645988,-200.0,0.00020874,2]
[404505127,1770228645999,-1164.2886,0.00020895,2]
[404505129,1770228646008,-2000.0,0.00020895,2]
[404505131,1770228646019,-2000.0,0.00020895,2]
[404505134,1770228646028,-174.23534602,0.000209,2]
[404505136,1770228646037,-725.83512869,0.000209,2]
[404505138,1770228646047,-160.32704842,0.000209,2]
[404505139,1770228646056,-491.19203473,0.00020935,2]
[404505140,1770228646066,-225.18697532,0.00020935,2]
[404505141,1770228646075,-150.0,0.00020954,2]
[404505143,1770228646085,-500.0,0.0002097,2]
[404505144,1770228646094,-700.0,0.0002097,2]
[404505145,1770228646103,-700.0,0.0002097,2]
[404505147,1770228646112,-700.0,0.0002097,2]
[404505148,1770228646121,-700.0,0.0002097,2]
[404505150,1770228646131,-700.0,0.0002097,2]
[404505152,1770228646140,-500.0,0.0002097,2]
[404505153,1770228646149,-500.0,0.0002097,2]
[404505154,1770228646158,-500.0,0.0002097,2]
[404505155,1770228646170,-150.0,0.00020973,2]
[404505156,1770228646179,-150.0,0.00020999,2]
[404505157,1770228646188,-20000.0,0.00021,2]
[404505158,1770228646197,-40000.0,0.00021,2]
[404505159,1770228646206,-1194.70371291,0.00021,2]
[404505160,1770228646215,-197.19578129,0.00021,2]
[404505161,1770228646225,-187127.25454298,0.00021,2]
[404505162,1770228646235,-160.0,0.00021,7]
[404505163,1770228646245,-20016.23757878,0.00021,5]
[404505164,1770228646256,-423.76,0.00021,15]
[404505165,1770228646267,-2000.0,0.00021,2]
[404505166,1770228646276,-150.0,0.00021,2]
[404505167,1770228646285,-208.0,0.00021,2]
[404505168,1770228646294,-10000.0,0.00021,2]
[404505169,1770228646303,-151.0,0.00021,2]
[404505170,1770228646312,-400.0,0.00021,2]
[404505171,1770228646321,-4331.664783,0.00021,2]
[404505172,1770228646331,-4331.664783,0.00021,2]
[404505173,1770228646341,-4331.664783,0.00021,2]
[404505174,1770228646352,-4331.664783,0.00021,2]
[404505175,1770228646361,-151.0,0.00021,2]
[404505176,1770228646371,-240.173527,0.00021,10]
[404505177,1770228646380,-155.468766,0.00021,2]
[404505178,1770228646391,-151.0,0.00021,2]
[404505179,1770228646400,-753.46186865,0.0002101,30]
[404505180,1770228646410,-221.71472575,0.0002101,2]
[404505181,1770228646423,-200.0,0.0002101,2]
[404505182,1770228646433,-836.5,0.00021026,10]
[404505183,1770228646443,-12530.78,0.00021068,2]
[404505184,1770228646452,-350.0,0.00021068,2]
[404505185,1770228646462,-450.0,0.00021068,2]
[404505186,1770228646471,-900.0,0.00021068,2]
[404505187,1770228646481,-1000.0,0.00021096,2]
[404505188,1770228646490,-61.11567853,0.000211,90]
[404505189,1770228646499,-533.0,0.00021141,4]
[404505190,1770228646509,-1656.4200112,0.00021164,2]
[404505191,1770228646518,-1553.8041172,0.00021189,2]
[404505192,1770228646527,-6486.2872081,0.00021189,2]
[404505193,1770228646537,-2425.00106134,0.00021198,2]
[404505194,1770228646546,-359.76179104,0.00021206,2]
[404505195,1770228646555,-221.71472575,0.0002122,2]
[404505196,1770228646565,-200.0,0.00021236,2]
[404505197,1770228646574,-626.51196031,0.0002126,2]
[404505198,1770228646583,-3500.0,0.0002126,2]
[404505199,1770228646593,-1571.86644552,0.0002126,2]
[404505200,1770228646603,-3500.0,0.0002126,2]
[404505201,1770228646613,-5000.0,0.0002127,2]
[404505202,1770228646623,-5016.3763,0.0002127,2]
[404505204,1770228646632,-151.45333834,0.00021288,2]
[404505206,1770228646641,-152.0,0.00021307,4]